fUSD/lending_fUSD_20240420
["ID","MTS","AMOUNT","RATE_DAILY","PERIOD"]
[323091596,1713643860029,-100249.661891,0.00019376,7]
[323091597,1713643860039,-34300.1459935,0.00019376,7]
[323091598,1713643860048,-153.93526216,0.00019376,2]
[323091599,1713643860058,-154.22655183,0.00019388,2]
[323091600,1713643860068,-150.0,0.0001939,2]
[323091601,1713643860077,-150.0,0.0001939,2]
[323091602,1713643860087,-150.0,0.0001939,2]
[323091603,1713643860096,-150.0,0.0001939,2]
[323091604,1713643860105,-150.0,0.0001939,2]
[323091605,1713643860114,-150.0,0.0001939,2]
[323091606,1713643860124,-2294.0,0.0001939,2]
[323091607,1713643860133,-969.0,0.0001939,2]
[323091608,1713643860142,-1393.0,0.0001939,2]
[323091609,1713643860152,-461.0,0.0001939,2]
[323091610,1713643860161,-1228.0,0.0001939,2]
[323091611,1713643860170,-541.0,0.0001939,2]
[323091612,1713643860180,-1255.0,0.0001939,2]
[323091613,1713643860191,-1857.0,0.0001939,2]
[323091614,1713643860201,-609.0,0.0001939,2]
[323091615,1713643860211,-257.0,0.0001939,2]
[323091616,1713643860220,-807.0,0.0001939,2]
[323091617,1713643860229,-436.0,0.0001939,2]
[323091618,1713643860243,-166.81715258,0.00019397,2]
[323091619,1713643860252,-222.0,0.000194,2]
[323091620,1713643860261,-152.38902318,0.00019434,2]
[323091621,1713643860271,-284.32561242,0.00019452,2]
[323091622,1713643860281,-702.33,0.00019452,2]
[323091623,1713643860291,-1382.21,0.00019452,2]
[323091624,1713643860300,-4580.1,0.00019452,2]
[323091625,1713643860309,-11216.95,0.00019452,2]
[323091626,1713643860320,-2413.07614556,0.00019454,2]
[323091627,1713643860330,-103526.55001771,0.00019484,2]
[323091628,1713643860339,-256378.4675757,0.00019484,2]
[323091629,1713643860348,-150.0,0.000195,2]
[323091630,1713643860358,-772.96881456,0.00019523,2]
[323091631,1713643860367,-154.22655183,0.00019532,2]
[323091632,1713643860376,-903.7045912,0.00019552,2]
[323091633,1713643860385,-152.8181268,0.00019564,2]
[323091634,1713643860394,-500.0,0.00019581,2]
[323091635,1713643860403,-4156.38,0.00019581,2]
[323091636,1713643860412,-2202.1,0.00019581,2]
[323091637,1713643860422,-324.15525679,0.00019629,2]
[323091638,1713643860431,-152.56413261,0.00019639,2]
[323091639,1713643860440,-2200.0,0.00019649,2]
[323091640,1713643860450,-197.45574109,0.00019666,2]
[323091641,1713643860459,-150.0,0.00019674,2]
[323091642,1713643860469,-153.35275824,0.00019677,2]
[323091643,1713643860479,-2413.07614556,0.00019685,2]
[323091644,1713643860488,-291.75,0.00019709,2]
[323091645,1713643860498,-702.33,0.00019726,2]
[323091646,1713643860507,-1382.21,0.00019726,2]
[323091647,1713643860516,-4580.1,0.00019726,2]
[323091648,1713643860526,-11216.95,0.00019726,2]
[323091649,1713643860534,-1000.0,0.00019726,2]
[323091650,1713643860544,-166.66666666,0.00019729,2]
[323091651,1713643860557,-204.53535468,0.0001974,2]
[323091652,1713643860566,-154.22655183,0.00019753,2]
[323091653,1713643860576,-903.7045912,0.00019789,2]
[323091654,1713643860585,-150.0,0.00019799,2]
[323091655,1713643860595,-166.66666666,0.00019833,2]
[323091656,1713643860604,-166.81715258,0.00019839,2]
[323091657,1713643860614,-11420.44000137,0.00019855,2]
[323091658,1713643860623,-193.54159939,0.00019855,2]
[323091659,1713643860632,-4156.38,0.00019855,2]
[323091660,1713643860642,-2202.1,0.00019855,2]
[323091661,1713643860651,-794.97695496,0.0001986,2]
[323091662,1713643860661,-2413.07614556,0.00019871,2]
[323091663,1713643860670,-2413.07614556,0.00019881,2]
[323091664,1713643860679,-153.35275824,0.00019887,2]
[323091665,1713643860689,-203.0,0.0001989,2]
[323091666,1713643860699,-150.0,0.00019898,2]
[323091667,1713643860709,-10000.0,0.000199,2]
[323091668,1713643860718,-352.0,0.000199,2]
[323091669,1713643860728,-1000.0,0.000199,2]
[323091670,1713643860737,-152.8181268,0.00019915,2]
[323091671,1713643860746,-903.7045912,0.00019921,2]
[323091672,1713643860755,-168.01823485,0.00019925,2]
[323091673,1713643860765,-154.22655183,0.00019944,2]
[323091674,1713643860774,-154.22655183,0.00019946,2]
[323091675,1713643860784,-154.22655183,0.00019952,2]
[323091676,1713643860793,-1004.14,0.00019955,2]
[323091677,1713643860802,-513.98880553,0.00019957,2]
[323091678,1713643860811,-152.0,0.0001998,3]
[323091679,1713643860821,-155.0,0.00019997,2]
[323091680,1713643860831,-38776.91086049,0.0002,2]
[323091681,1713643860840,-35070.33602545,0.0002,15]
[323091682,1713643860850,-965.0,0.0002,2]
[323091683,1713643860860,-23000.0,0.0002,2]
[323091684,1713643860869,-3200.0,0.0002,5]
[323091685,1713643860879,-3000.0,0.0002,4]
[323091686,1713643860888,-1888.0,0.0002,3]
[323091687,1713643860897,-652.3,0.0002,2]
[323091688,1713643860907,-652.3,0.0002,2]
[323091689,1713643860916,-150.0,0.0002,2]
[323091690,1713643860925,-354.0,0.0002,2]
[323091691,1713643860935,-188.0,0.0002,2]
[323091692,1713643860946,-10000.0,0.0002,4]
[323091693,1713643860955,-1000.0,0.0002,3]
[323091694,1713643860965,-926.45238383,0.0002,2]
[323091695,1713643861032,-155.0,0.0002,2]
[323091696,1713643861041,-3067.70286643,0.0002,2]
[323091697,1713643861050,-11941.35216172,0.0002,2]
[323091698,1713643861060,-357.27600296,0.0002,2]
[323091699,1713643861069,-2413.09779345,0.0002,2]
[323091700,1713643861078,-1766.39515948,0.0002,2]
[323091701,1713643861087,-1231.30416486,0.0002,2]
[323091702,1713643861096,-195.47665898,0.0002,2]
[323091703,1713643861106,-1650.11829307,0.0002,2]
[323091704,1713643861115,-173.0112337,0.0002,2]
[323091705,1713643861124,-1400.0,0.0002,2]
[323091706,1713643861133,-2100.0,0.0002,2]
[323091707,1713643861142,-2000.0,0.0002,2]
[323091708,1713643861151,-1000.64271393,0.0002,2]
[323091709,1713643861161,-965.0,0.0002,2]
[323091710,1713643861170,-708.0,0.0002,2]
[323091711,1713643861179,-150.0,0.0002,2]
[323091712,1713643861187,-702.33,0.0002,2]
[323091713,1713643861198,-1382.21,0.0002,2]
[323091714,1713643861207,-4580.1,0.0002,2]
[323091715,1713643861216,-1403.0,0.0002,2]
[323091716,1713643861225,-3257.0,0.0002,2]
[323091717,1713643861237,-11216.95,0.0002,2]
[323091718,1713643861245,-1350.0,0.0002,2]
[323091719,1713643861254,-881.0,0.0002,2]
[323091720,1713643861264,-1281.0,0.0002,2]
[323091721,1713643861273,-2000.0,0.0002,2]
[323091722,1713643861282,-175.65381539,0.0002,2]
[323091723,1713643861291,-2000.0,0.0002001,2]
[323091724,1713643861300,-772.96881456,0.00020019,2]
[323091725,1713643861309,-2000.0,0.0002002,2]
[323091726,1713643861319,-2000.0,0.0002003,2]
[323091727,1713643861329,-2915.247781,0.0002004,2]
[323091728,1713643861338,-177.11468165,0.0002009,2]
[323091729,1713643861347,-4156.38,0.00020129,2]
[323091730,1713643861356,-2202.1,0.00020129,2]
[323091731,1713643861365,-1000.0,0.00020142,2]
[323091732,1713643861375,-2481.44498147,0.00020161,2]
[323091733,1713643861384,-154.31998399,0.00020173,2]
[323091734,1713643861393,-204.53535468,0.00020184,2]
[323091735,1713643861402,-150.0,0.00020194,2]
[323091736,1713643861411,-3100.0,0.00020197,2]
[323091737,1713643861420,-156.12497096,0.00020226,2]
[323091738,1713643861429,-153.35275824,0.0002023,2]
[323091739,1713643861438,-150.0,0.0002024,2]
[323091740,1713643861448,-150.0,0.00020261,2]
[323091741,1713643861458,-702.33,0.00020273,2]
[323091742,1713643861467,-1382.21,0.00020273,2]
[323091743,1713643861477,-4580.1,0.00020273,2]
[323091744,1713643861486,-11216.95,0.00020273,2]
[323091745,1713643861496,-1500.0,0.00020273,2]
[323091746,1713643861505,-174.2705654,0.00020275,2]
[323091747,1713643861515,-154.98058798,0.00020298,2]
[323091748,1713643861524,-30000.0,0.000203,3]
[323091749,1713643861533,-204.53535468,0.00020302,2]
[323091750,1713643861542,-1500.0,0.00020303,2]
[323091751,1713643861551,-197.45574109,0.00020311,2]
[323091752,1713643861560,-772.96881456,0.00020328,2]
[323091753,1713643861569,-2481.44498147,0.00020348,2]
[323091754,1713643861578,-166.84086597,0.00020354,2]
[323091755,1713643861588,-239.83,0.00020359,15]
[323091756,1713643861598,-150.5,0.00020369,15]
[323091757,1713643861607,-150.0,0.00020377,2]
[323091758,1713643861617,-11420.44000137,0.00020377,2]
[323091759,1713643861626,-150.0,0.00020382,2]
[323091760,1713643861635,-150.0,0.00020383,2]
[323091761,1713643861644,-150.19727466,0.00020385,2]
[323091762,1713643861653,-3356.94272178,0.00020386,2]
[323091763,1713643861662,-154.31998399,0.00020394,2]
[323091764,1713643861672,-2885.63,0.000204,2]
[323091765,1713643861681,-56339.7315227,0.000204,2]
[323091766,1713643861692,-4156.38,0.00020403,2]
[323091767,1713643861701,-2202.1,0.00020403,2]
[323091768,1713643861711,-204.53535468,0.00020403,2]
[323091769,1713643861720,-164.76488836,0.00020403,2]
[323091770,1713643861729,-150.0,0.00020405,2]
[323091771,1713643861738,-150.0,0.00020407,2]
[323091772,1713643861747,-150.0,0.00020417,2]
[323091773,1713643861756,-794.97695496,0.00020441,2]
[323091774,1713643861766,-150.0,0.00020447,2]
[323091775,1713643861775,-324.15525679,0.0002046,2]
[323091776,1713643861784,-2481.44498147,0.00020463,2]
[323091777,1713643861793,-150.0,0.00020466,2]
[323091778,1713643861802,-164.76488836,0.00020467,2]
[323091779,1713643861812,-500.0,0.00020471,2]
[323091780,1713643861822,-500.0,0.00020471,2]
[323091781,1713643861832,-156.74680898,0.00020472,2]
[323091782,1713643861842,-150.0,0.00020474,2]
[323091783,1713643861851,-1466.57054899,0.00020475,2]
[323091784,1713643861861,-150.0,0.00020479,2]
[323091785,1713643861871,-203.0,0.0002048,2]
[323091786,1713643861880,-150.0,0.00020489,2]
[323091787,1713643861889,-150.0,0.00020491,2]
[323091788,1713643861899,-150.0,0.000205,2]
[323091789,1713643861908,-154.98058798,0.00020517,2]
[323091790,1713643861918,-150.0,0.00020521,2]
[323091791,1713643861927,-324.15525679,0.00020521,2]
[323091792,1713643861936,-772.96881456,0.00020521,2]
[323091793,1713643861948,-513.98880553,0.00020528,2]
[323091794,1713643861959,-150.0,0.00020528,2]
[323091795,1713643861968,-702.33,0.00020547,2]
[323091796,1713643861977,-1382.21,0.00020547,2]
[323091797,1713643861986,-4580.1,0.00020547,2]
[323091798,1713643861995,-11216.95,0.00020547,2]
[323091799,1713643862004,-150.51,0.0002055,2]
[323091800,1713643862014,-2413.07614556,0.00020554,2]
[323091801,1713643862023,-150.0,0.00020559,2]
[323091802,1713643862032,-150.0,0.00020562,2]
[323091803,1713643862042,-166.67573769,0.00020572,2]
[323091804,1713643862051,-164.76488836,0.00020575,2]
[323091805,1713643862060,-150.0,0.00020577,2]
[323091806,1713643862070,-1500.0,0.00020588,2]
[323091807,1713643862079,-2102.83,0.000206,2]
[323091808,1713643862089,-513.98880553,0.00020602,2]
[323091809,1713643862099,-150.0,0.00020605,2]
[323091810,1713643862107,-150.19727466,0.00020615,2]
[323091811,1713643862117,-2413.07614556,0.00020616,2]
[323091812,1713643862126,-150.0,0.00020624,2]
[323091813,1713643862135,-903.7045912,0.00020634,2]
[323091814,1713643862144,-4156.38,0.00020677,2]
[323091815,1713643862153,-2202.1,0.00020677,2]
[323091816,1713643862162,-204.53535468,0.00020679,2]
[323091817,1713643862170,-163.14,0.00020683,2]
[323091818,1713643862179,-903.7045912,0.00020687,2]
[323091819,1713643862188,-272.97150437,0.00020699,2]
[323091820,1713643862203,-150.0,0.00020701,2]
[323091821,1713643862212,-164.76488836,0.00020743,2]
[323091822,1713643862221,-2200.0,0.00020745,2]
[323091823,1713643862230,-794.97695496,0.00020746,2]
[323091824,1713643862244,-166.66666666,0.00020756,2]
[323091825,1713643862253,-166.66666666,0.00020769,2]
[323091826,1713643862262,-150.0,0.00020778,2]
[323091827,1713643862271,-204.53535468,0.00020781,2]
[323091828,1713643862281,-8508.5994292,0.000208,2]
[323091829,1713643862290,-3016.2257258,0.000208,2]
[323091830,1713643862300,-6068.98658456,0.000208,2]
[323091831,1713643862309,-7534.13955744,0.000208,2]
[323091832,1713643862319,-3324.95254959,0.000208,2]
[323091833,1713643862328,-1004.14,0.0002081,2]
[323091834,1713643862337,-306.38,0.0002081,2]
[323091835,1713643862346,-153.35275824,0.00020818,2]
[323091836,1713643862355,-702.33,0.00020821,2]
[323091837,1713643862364,-1382.21,0.00020821,2]
[323091838,1713643862373,-4580.1,0.00020821,2]
[323091839,1713643862382,-11216.95,0.00020821,2]
[323091840,1713643862391,-2000.0,0.00020821,2]
[323091841,1713643862399,-903.7045912,0.00020832,2]
[323091842,1713643862408,-150.0,0.00020833,2]
[323091843,1713643862418,-150.0,0.00020865,2]
[323091844,1713643862427,-2208.3254597,0.000209,2]
[323091845,1713643862436,-181.59856682,0.000209,2]
[323091846,1713643862447,-11420.44000137,0.000209,2]
[323091847,1713643862456,-150.0,0.00020904,2]
[323091848,1713643862465,-513.98880553,0.00020907,2]
[323091849,1713643862473,-150.0,0.00020916,2]
[323091850,1713643862483,-150.0,0.00020922,2]
[323091851,1713643862492,-150.0,0.00020925,2]
[323091852,1713643862501,-151.14144813,0.00020941,2]
[323091853,1713643862510,-4156.38,0.00020951,2]
[323091854,1713643862518,-2202.1,0.00020951,2]
[323091855,1713643862527,-151.14144813,0.00020954,2]
[323091856,1713643862536,-155.94518818,0.00020955,2]
[323091857,1713643862546,-800.0,0.0002097,2]
[323091858,1713643862555,-58572.49198183,0.00020985,20]
[323091859,1713643862565,-6272.3071442,0.00020986,2]
[323091860,1713643862574,-5366.296305,0.00020986,2]
[323091861,1713643862582,-4460.2854657,0.00020986,2]
[323091862,1713643862591,-3554.2746264,0.00020986,2]
[323091863,1713643862600,-2648.2637872,0.00020986,2]
[323091864,1713643862607,-27686.3214908,0.00020986,2]
[323091865,1713643862616,-23687.1379698,0.00020986,2]
[323091866,1713643862625,-19687.9544488,0.00020986,2]
[323091867,1713643862634,-15688.7709278,0.00020986,2]
[323091868,1713643862643,-11689.5874068,0.00020986,2]
[323091869,1713643862652,-2333.8255672,0.00020986,2]
[323091870,1713643862661,-1998.8939804,0.00020986,2]
[323091871,1713643862670,-1663.9623935,0.00020986,2]
[323091872,1713643862679,-1329.0308067,0.00020986,2]
[323091873,1713643862688,-994.0992198,0.00020986,2]
[323091874,1713643862701,-772.96881456,0.00020989,2]
[323091875,1713643862710,-150.0,0.0002099,2]
[323091876,1713643862719,-201.10877828,0.00020998,2]
[323091877,1713643862729,-152.0,0.00021,4]
[323091878,1713643862738,-7274779.20324988,0.00021,2]
[323091879,1713643862747,-1648.85058543,0.00021,2]
[323091880,1713643862756,-5243934.93025592,0.00021,2]
[323091881,1713643862765,-10909253.43499462,0.00021,2]
[323091882,1713643862774,-9343294.37583867,0.00021,2]
[323091883,1713643862783,-330431.7896618,0.00021,2]
[323091884,1713643862793,-4930090.46772862,0.00021,2]
[323091885,1713643863015,-16661.555245,0.00021,2]
[323091886,1713643863203,-359.18860075,0.00015196,2]
[323091887,1713643863212,-487.79623714,0.00015196,2]
[323091888,1713643863221,-647.0,0.0001539,2]
[323091889,1713643863230,-362.91545669,0.00015498,2]
[323091890,1713643863244,-163.3203843,0.00015499,2]
[323091891,1713643863253,-151.0,0.000155,2]
[323091892,1713643863262,-151.0,0.00015638,2]
[323091893,1713643863271,-151.0,0.00015998,2]
[323091894,1713643863281,-151.0,0.00016019,2]
[323091895,1713643863291,-151.0,0.0001639,2]
[323091896,1713643863300,-269.1795648,0.00016445,2]
[323091897,1713643863309,-121.83475632,0.000194,2]
[323091898,1713643863322,-191.57718193,0.000194,2]
[323091899,1713643863332,-528.55772007,0.00021,2]
[323091900,1713643863352,-1070.3129893,0.00014898,2]
[323091901,1713643863361,-486.4870069,0.00021,2]
[323091902,1713643863375,-113678.26411657,0.00021,2]
[323091903,1713643863687,319.29815338,0.00010654,2]
[323091904,1713643993453,319.83502146,0.00010654,2]
[323091905,1713644011451,319.56658742,0.00010654,2]
[323091908,1713644284260,164.83,0.00011178,2]
[323091909,1713644304576,5430.28743102,0.000281,120]
[323091910,1713644626357,359.18860075,0.00011898,2]
[323091911,1713644653749,526.80925565,0.00011898,2]
[323091912,1713644768579,354.48,0.00011694,2]
[323091913,1713644809953,200.0,0.00011363,2]
[323091914,1713644873379,359.18860075,0.00011896,2]
[323091915,1713644942816,750.82519645,0.00011896,2]
[323091916,1713644942842,3976.80250869,0.00011896,2]
[323091917,1713644948883,23.19749131,0.00011797,2]
[323091918,1713644948905,4000.0,0.00011797,2]
[323091919,1713644948928,4000.0,0.00011797,2]
[323091920,1713644948949,4000.0,0.00011797,2]
[323091921,1713644948970,4000.0,0.00011797,2]
[323091922,1713644952418,151.11010631,0.00011738,2]
[323091923,1713645019458,-1293.62492362,0.00011796,2]
[323091954,1713645033885,-318.37870869,0.00011797,2]
[323091955,1713645033894,-261.66000269,0.000119,2]
[323091956,1713645033906,-257.41029778,0.000119,2]
[323091957,1713645033915,-159.80423538,0.00011945,2]
[323091958,1713645033924,-359.18860075,0.00013533,2]
[323091959,1713645033933,-4727.62770514,0.00013533,2]
[323091960,1713645033942,-1663.66,0.00013534,2]
[323091961,1713645033951,-155.11322752,0.00013559,2]
[323091962,1713645033960,-150.0,0.00013559,2]
[323091963,1713645033969,-10051.69831541,0.00013561,2]
[323091964,1713645033980,-2500.63994794,0.00013561,2]
[323091965,1713645034003,-3230.63302066,0.00013561,2]
[323091966,1713645034016,-923.66043016,0.00013561,2]
[323091967,1713645034029,-7193.36828583,0.00013561,2]
[323091968,1713645034039,-1489.34,0.00013594,2]
[323091969,1713645034049,-509.39,0.00013614,2]
[323091970,1713645034059,-175.49,0.00013623,2]
[323091971,1713645034069,-150.0,0.0001367,2]
[323091972,1713645034078,-200.0,0.0001367,2]
[323091973,1713645034088,-250.0,0.0001367,2]
[323091974,1713645034097,-1917.57218478,0.00013693,2]
[323091975,1713645034107,-500.0,0.00013699,2]
[323091976,1713645034116,-200.0,0.00013699,2]
[323091977,1713645034127,-180.06,0.00013699,2]
[323091978,1713645034137,-250.0,0.000137,2]
[323091979,1713645034147,-396.32,0.000137,2]
[323091980,1713645034156,-500.0,0.00013721,2]
[323091981,1713645034165,-499.99,0.00013721,2]
[323091982,1713645034174,-1396.41,0.00013721,2]
[323091983,1713645034183,-442.06,0.0001387,2]
[323091984,1713645034193,-1240.85468141,0.00013883,2]
[323091985,1713645034202,-8646.7777274,0.00013883,2]
[323091986,1713645034215,-4960.4822726,0.00013883,2]
[323091987,1713645034224,-159.98,0.00013904,2]
[323091988,1713645034233,-150.99,0.00013904,2]
[323091989,1713645034242,-1500.0,0.00013944,2]
[323091990,1713645034251,-11.33235066,0.00013947,2]
[323092005,1713645038318,-1309.25920649,0.00012881,2]
[323092006,1713645038328,-1210.4775647,0.00013947,2]
[323092007,1713645038337,-155.0,0.00013948,2]
[323092008,1713645038346,-591.93,0.00013948,2]
[323092009,1713645038355,-354.48,0.00013958,2]
[323092010,1713645038364,-1250.0,0.00014,2]
[323092011,1713645038373,-175.27,0.00014133,2]
[323092012,1713645038384,-157.91,0.00014492,2]
[323092013,1713645038394,-157.91,0.00014497,2]
[323092014,1713645038403,-157.91,0.00014501,2]
[323092015,1713645038413,-157.91,0.00014506,2]
[323092016,1713645038422,-157.91,0.0001451,2]
[323092017,1713645038432,-157.91,0.00014515,2]
[323092018,1713645038441,-157.91,0.00014519,2]
[323092019,1713645038450,-157.91,0.00014524,2]
[323092020,1713645038459,-157.91,0.00014528,2]
[323092021,1713645038469,-157.91,0.00014533,2]
[323092022,1713645038478,-157.91,0.00014537,2]
[323092023,1713645038487,-157.91,0.00014542,2]
[323092024,1713645038497,-157.91,0.00014546,2]
[323092025,1713645038506,-157.91,0.00014551,2]
[323092026,1713645038516,-157.91,0.00014555,2]
[323092027,1713645038525,-157.91,0.0001456,2]
[323092028,1713645038535,-157.91,0.00014564,2]
[323092029,1713645038545,-1503.9974,0.000148,2]
[323092030,1713645038554,-167.33,0.00014949,2]
[323092031,1713645038564,-269.3759457,0.00015068,2]
[323092032,1713645038573,-376.15937774,0.00015194,2]
[323092033,1713645038583,-439.82224476,0.00015195,2]
[323092034,1713645038592,-209.8975,0.00015242,2]
[323092035,1713645038600,-434.6079,0.00015242,2]
[323092037,1713645038610,-3964.2352,0.000154,2]
[323092039,1713645038619,-1000.0,0.000154,2]
[323092041,1713645038634,-7500.0,0.000154,2]
[323092044,1713645038643,-1917.57218477,0.000154,2]
[323092046,1713645038652,-2390.4915,0.000154,2]
[323092048,1713645038662,-1219.14214475,0.00015416,2]
[323092050,1713645038672,-156.53,0.00015419,2]
[323092052,1713645038681,-313.41193825,0.00015473,2]
[323092054,1713645038690,-150.18,0.0001549,2]
[323092056,1713645038699,-150.18,0.0001549,2]
[323092058,1713645038710,-150.18,0.0001549,2]
[323092059,1713645038719,-150.18,0.0001549,2]
[323092062,1713645038729,-150.18,0.0001549,2]
[323092063,1713645038738,-150.18,0.0001549,2]
[323092066,1713645038747,-150.18,0.0001549,2]
[323092068,1713645038757,-150.18,0.0001549,2]
[323092070,1713645038766,-150.18,0.0001549,2]
[323092074,1713645038776,-150.18,0.0001549,2]
[323092076,1713645038786,-150.18,0.0001549,2]
[323092079,1713645038796,-150.18,0.0001549,2]
[323092082,1713645038806,-150.18,0.0001549,2]
[323092084,1713645038815,-150.18,0.0001549,2]
[323092086,1713645038825,-150.18,0.0001549,2]
[323092087,1713645038834,-150.18,0.0001549,2]
[323092089,1713645038843,-150.18,0.0001549,2]
[323092091,1713645038853,-150.18,0.0001549,2]
[323092093,1713645038863,-150.18,0.0001549,2]
[323092096,1713645038872,-267.06178074,0.00015499,2]
[323092097,1713645038886,-407.51520113,0.00015499,2]
[323092100,1713645038896,-323.71445876,0.00015499,2]
[323092102,1713645038906,-500.0,0.00015499,2]
[323092103,1713645038915,-500.0,0.00015499,2]
[323092105,1713645038924,-500.0,0.00015499,2]
[323092108,1713645038933,-3570.17,0.00015499,2]
[323092109,1713645038943,-500.0,0.00015499,2]
[323092111,1713645038952,-1146.83,0.00015499,2]
[323092113,1713645038961,-500.0,0.00015499,2]
[323092115,1713645038970,-45988.98955629,0.000155,2]
[323092118,1713645038989,-438.29,0.000155,2]
[323092121,1713645039011,-848.26710872,0.000155,2]
[323092124,1713645039026,-55512.1034647,0.000155,2]
[323092126,1713645039037,-1467.73390285,0.000155,2]
[323092145,1713645040295,-168.44,0.00013614,2]
[323092146,1713645040304,-473.91214,0.000155,2]
[323092147,1713645040350,-1400746.66074663,0.000155,2]
[323092148,1713645040361,-263.40563939,0.000155,2]
[323092149,1713645040408,-2688.09112592,0.000155,2]
[323092150,1713645040464,-2722.99942145,0.000155,2]
[323092151,1713645040521,-1774.36056932,0.000155,2]
[323092163,1713645043468,-654.02,0.000155,2]
[323092164,1713645043552,-2667.13837767,0.000155,2]
[323092165,1713645043577,-2925.69016085,0.000155,2]
[323092166,1713645043635,-144335.94701782,0.000155,2]
[323092167,1713645043645,-500.0,0.00015773,2]
[323092168,1713645043654,-500.0,0.00015773,2]
[323092169,1713645043664,-500.0,0.00015773,2]
[323092170,1713645043676,-3570.17,0.00015773,2]
[323092171,1713645043687,-500.0,0.00015773,2]
[323092172,1713645043697,-1146.83,0.00015773,2]
[323092173,1713645043709,-169.74,0.00015831,2]
[323092174,1713645043718,-1000.0,0.00015904,2]
[323092175,1713645043727,-1219.14214471,0.00015915,2]
[323092176,1713645043737,-764.3448685,0.00015939,2]
[323092177,1713645043745,-1300.0,0.00016,2]
[323092178,1713645043754,-500.0,0.00016047,2]
[323092179,1713645043763,-500.0,0.00016047,2]
[323092180,1713645043772,-500.0,0.00016047,2]
[323092181,1713645043781,-3570.17,0.00016047,2]
[323092182,1713645043790,-500.0,0.00016047,2]
[323092184,1713645043799,-1146.83,0.00016047,2]
[323092185,1713645043808,-354.48,0.00016222,2]
[323092187,1713645043817,-1663.66,0.00016274,2]
[323092188,1713645043826,-150.18,0.00016311,2]
[323092189,1713645043835,-500.0,0.00016321,2]
[323092190,1713645043844,-500.0,0.00016321,2]
[323092191,1713645043853,-500.0,0.00016321,2]
[323092192,1713645043862,-3570.17,0.00016321,2]
[323092193,1713645043871,-500.0,0.00016321,2]
[323092194,1713645043881,-1146.83,0.00016321,2]
[323092195,1713645043891,-1219.14214471,0.00016413,2]
[323092196,1713645043901,-180.06,0.00016438,2]
[323092197,1713645043911,-1223.62381622,0.000165,2]
[323092198,1713645043921,-257.0,0.00016573,2]
[323092199,1713645043932,-609.0,0.00016573,2]
[323092201,1713645044108,-807.0,0.00016573,2]
[323092202,1713645044121,-436.0,0.00016573,2]
[323092203,1713645044134,-1857.0,0.00016573,2]
[323092204,1713645044144,-3118.0,0.00016573,2]
[323092205,1713645044155,-150.0,0.00016573,2]
[323092206,1713645044165,-399.0,0.00016573,2]
[323092207,1713645044175,-2444.0,0.00016573,2]
[323092208,1713645044185,-1474.0,0.00016573,2]
[323092209,1713645044196,-214.0,0.00016573,2]
[323092210,1713645044206,-150.0,0.00016573,2]
[323092211,1713645044215,-1640.0,0.00016573,2]
[323092212,1713645044227,-287.957,0.00016573,2]
[323092213,1713645044237,-1140.0,0.00016573,2]
[323092214,1713645044247,-443.0,0.00016573,2]
[323092215,1713645044256,-5727.0,0.00016573,2]
[323092216,1713645044266,-969.0,0.00016573,2]
[323092217,1713645044279,-5891.0,0.00016573,2]
[323092218,1713645044290,-2294.0,0.00016573,2]
[323092219,1713645044300,-1393.0,0.00016573,2]
[323092220,1713645044312,-461.0,0.00016573,2]
[323092221,1713645044323,-37676.0,0.00016573,2]
[323092222,1713645044334,-2704.0,0.00016573,2]